bitfinex/quotes_ETHUSD_20240630
["timestamp","ask_amount","ask_price","bid_price","bid_amount"]
[1719787221465,4.9014,3456.5,3455.1,4.7131]
[1719787221994,4.9014,3456.5,3455.1,5.5351]
[1719787222153,0.822,3456.1,3455.1,4.7131]
[1719787222349,0.822,3456.1,3455.1,5.5351]
[1719787222768,4.9014,3456.5,3455.1,5.5351]
[1719787222989,0.822,3456.2,3455.1,5.5351]
[1719787223980,0.79014,3456.4,3455.1,4.7131]
[1719787231503,4.9014,3456.5,3455.2,0.05787373]
[1719787231794,3.0,3456.6,3455.3,4.98567823]
[1719787231981,3.0,3456.9,3455.3,4.98567823]
[1719787232184,3.0,3456.9,3455.5,4.8735]
[1719787232582,3.0,3456.9,3455.6,0.05418089]
[1719787232583,0.79182,3456.8,3455.6,0.05418089]
[1719787237564,0.79182,3456.8,3455.6,0.11204893]
[1719787237925,3.0,3456.9,3455.6,0.11204893]
[1719787238242,4.73,3457.4,3455.8,4.8606]
[1719787238593,3.0,3457.3,3456.0,4.7486]
[1719787238893,3.0,3457.3,3456.1,0.05389192]
[1719787239255,3.773,3457.3,3456.1,0.05389192]
[1719787245118,1.973,3457.1,3456.1,0.05389192]
[1719787245319,4.7287,3457.0,3455.6,4.7507]
[1719787245496,4.7287,3457.0,3455.7,0.05390679]
[1719787245833,4.02517,3456.9,3455.7,0.05390679]
[1719787247596,0.55,3456.8,3455.7,0.05390679]
[1719787248223,0.55,3456.8,3455.6,4.7507]
[1719787250727,4.02517,3456.9,3455.6,4.7507]
[1719787250929,4.02517,3456.9,3455.7,0.11178137]
[1719787251241,0.875387,3456.8,3455.7,0.11178137]
[1719787251831,0.875387,3456.8,3455.7,0.05390679]
[1719787252021,4.7141,3456.5,3455.7,0.05390679]
[1719787252223,4.7141,3456.5,3455.2,5.0548]
[1719787252422,1.973,3456.2,3455.8,0.05387375]
[1719787252747,0.5523,3456.1,3454.9,5.0548]
[1719787252954,3.5523,3456.1,3455.0,0.05433251]
[1719787253106,0.5523,3456.1,3455.0,0.05433251]
[1719787255923,0.5523,3456.1,3455.0,0.11221177]
[1719787256919,3.0,3456.4,3455.0,0.11221177]
[1719787257121,3.0,3456.7,3455.1,4.8691]
[1719787257326,7.0099,3457.0,3455.3,4.8691]
[1719787257566,3.0,3456.9,3455.4,0.05419162]
[1719787257915,3.0,3456.9,3455.3,4.8691]
[1719787258120,3.0,3456.9,3455.4,0.05419162]
[1719787258348,1.00099,3456.8,3455.3,4.8691]
[1719787258645,1.00099,3456.8,3455.4,0.05419162]
[1719787259018,1.00099,3456.8,3455.3,4.8691]
[1719787259327,4.6826,3457.4,3455.7,1.973]
[1719787259528,0.75,3458.6,3455.9,4.9359]
[1719787259529,1.973,3457.9,3455.9,4.9359]
[1719787259729,4.7844,3457.0,3456.0,0.0538343]
[1719787259941,4.7844,3457.0,3455.9,4.9359]
[1719787261045,3.55,3456.9,3455.9,4.9359]
[1719787261234,3.55,3456.9,3454.7,2.89]
[1719787261235,1.973,3456.7,3454.8,5.0574]
[1719787261755,1.973,3456.7,3454.7,2.89]
[1719787261756,1.973,3456.7,3455.0,5.0574]
[1719787261968,0.5523,3456.6,3455.1,0.05434896]
[1719787262159,0.5523,3456.6,3455.2,5.11527702]
[1719787262475,0.5523,3456.6,3455.1,0.05434896]
[1719787262476,3.5523,3456.6,3455.4,4.7802]
[1719787262626,3.0,3456.9,3455.4,4.7802]
[1719787262825,0.55,3456.8,3455.5,0.05412019]
[1719787263058,0.55,3456.8,3455.4,4.7802]
[1719787263059,5.0539,3456.5,3455.4,4.7802]
[1719787263257,3.0,3456.4,3455.4,4.7802]
[1719787263463,1.00269,3456.3,3455.4,4.7802]
[1719787264677,3.0,3456.4,3455.4,6.7532]
[1719787264848,5.0539,3457.3,3455.6,4.6587]
[1719787265032,7.0269,3457.3,3455.6,4.6587]
[1719787265230,7.0269,3457.3,3455.7,0.05400583]
[1719787265462,0.70269,3457.2,3455.7,0.05400583]
[1719787266161,0.55,3457.1,3455.7,0.05400583]
[1719787266563,1.973,3456.8,3455.7,0.05400583]
[1719787266947,3.0,3456.9,3455.6,4.6587]
[1719787267158,3.55,3457.1,3455.7,0.05394763]
[1719787267365,1.121559,3457.0,3455.7,0.05394763]
[1719787267954,1.121559,3457.0,3455.8,4.9994]
[1719787268161,1.121559,3457.0,3455.9,0.05383266]
[1719787270772,4.9239,3456.7,3455.9,0.05383266]
[1719787270974,0.55,3456.6,3455.9,0.05383266]
[1719787271171,0.74469,3456.5,3455.9,0.05383266]
[1719787272039,1.973,3456.4,3455.9,0.05383266]
[1719787272238,2.523,3456.4,3455.9,0.05383266]
[1719787272545,2.523,3456.4,3456.0,0.05376435]
[1719787272546,3.0,3456.3,3456.0,0.05376435]
[1719787272861,3.0,3456.3,3455.4,5.0905]
[1719787273074,3.0,3456.4,3456.1,0.05370718]
[1719787273273,0.74469,3456.5,3455.4,5.0905]
[1719787273575,3.0,3456.6,3455.5,0.05786573]
[1719787273870,4.747,3457.1,3455.5,0.05405024]
[1719787274088,3.0,3457.0,3455.4,5.0905]
[1719787274948,0.55,3456.9,3455.4,5.0905]
[1719787275895,3.0,3457.0,3455.4,5.0905]
[1719787276096,0.972,3456.9,3455.6,4.8074]
[1719787276463,0.972,3456.9,3455.7,0.05393588]
[1719787277865,4.6018,3456.6,3455.7,0.05393588]
[1719787278069,1.973,3456.3,3455.7,0.05393588]
[1719787278272,1.973,3456.3,3455.3,4.8074]
[1719787278273,0.2523,3456.2,3455.3,4.8074]
[1719787278467,0.2523,3456.2,3455.8,0.05227906]
[1719787278775,0.2523,3456.2,3455.3,4.8074]
[1719787279175,0.2523,3456.2,3454.2,2.89501]
[1719787279176,0.55,3456.1,3454.4,4.8074]
[1719787279384,0.55,3456.1,3454.5,0.05303749]
[1719787279624,0.57753,3456.0,3454.5,0.05303749]
[1719787279917,0.55,3455.9,3454.5,0.05303749]
[1719787280209,4.991,3455.8,3454.5,0.05303749]
[1719787280593,3.55,3455.7,3454.4,4.8074]
[1719787286335,1.973,3455.1,3454.4,4.8074]
[1719787286991,1.973,3455.1,3453.5,4.74]
[1719787287341,1.973,3454.7,3453.5,4.74]
[1719787287474,1.973,3454.7,3453.6,0.05228242]
[1719787287673,1.973,3454.7,3453.5,4.74]
[1719787288103,3.0,3454.9,3453.5,4.74]
[1719787288332,0.55,3454.8,3453.5,4.74]
[1719787288532,0.42973,3454.7,3453.6,0.05228242]
[1719787289016,1.973,3455.2,3453.6,0.05228242]
[1719787289746,0.55,3455.1,3453.6,0.05228242]
[1719787289887,1.973,3454.8,3453.6,0.05228242]
[1719787290290,1.973,3454.8,3453.5,4.74]
[1719787290528,4.973,3454.8,3453.5,4.74]
[1719787290730,0.96447,3454.7,3453.5,4.74]
[1719787291043,3.96447,3454.7,3453.5,4.74]
[1719787291438,3.55,3455.1,3453.5,4.74]
[1719787292427,3.55,3455.1,3453.6,0.05790653]
[1719787292824,3.55,3455.1,3453.7,0.0524116]
[1719787294223,3.0,3455.1,3453.9,5.0689]
[1719787294424,0.4973,3455.1,3453.9,5.0689]
[1719787294625,0.55,3455.0,3454.0,0.05223677]
[1719787294829,0.55,3455.1,3454.0,0.05223677]
[1719787294987,3.55,3455.1,3454.0,0.05223677]
[1719787295589,1.973,3454.6,3454.0,0.05223677]
[1719787295795,1.973,3454.6,3453.9,5.0689]
[1719787296113,0.1973,3454.5,3453.0,5.0689]
[1719787296636,0.1973,3454.5,3453.1,0.05275141]
[1719787298925,1.973,3454.2,3453.1,0.05275141]
[1719787299093,4.973,3454.2,3453.1,0.05275141]
[1719787299294,0.55,3454.1,3453.0,5.0689]
[1719787299592,3.55,3454.1,3453.0,5.0689]
[1719787302009,3.0,3454.2,3453.1,0.051091]
[1719787302210,0.4973,3454.1,3453.1,0.051091]
[1719787302528,3.0,3454.6,3453.1,0.051091]
[1719787302729,0.55,3454.5,3453.2,0.05270778]
[1719787303030,0.55,3454.5,3453.0,5.0689]
[1719787303355,0.55,3454.5,3453.1,0.05276505]
[1719787303902,0.55,3454.5,3453.1,0.11067674]
[1719787304199,1.01994,3454.4,3453.1,0.11067674]
[1719787305740,1.01994,3454.4,3453.2,4.7653]
[1719787305927,3.0,3454.6,3453.4,4.7653]
[1719787306120,1.973,3455.0,3453.5,0.05790215]
[1719787307201,0.55,3454.9,3453.5,0.05790215]
[1719787307429,3.55,3454.9,3453.5,0.05790215]
[1719787307643,0.5523,3454.8,3453.5,0.05790215]
[1719787309435,1.973,3454.6,3453.4,4.7653]
[1719787310456,1.973,3454.6,3453.5,0.05455934]
[1719787311551,1.973,3454.2,3453.4,4.7653]
[1719787311756,0.1973,3454.1,3452.5,5.0769]
[1719787312107,0.1973,3454.1,3452.7,5.0769]
[1719787312512,0.1973,3454.1,3452.8,0.05134245]
[1719787314880,0.1973,3454.1,3452.9,0.02666778]
[1719787315033,0.1973,3454.1,3452.9,0.0506045]
[1719787315233,0.1973,3454.1,3453.0,0.05122791]
[1719787315474,0.1973,3454.1,3453.2,4.8499]
[1719787315679,3.0,3454.4,3453.2,4.8499]
[1719787315977,3.0,3454.4,3453.3,0.10167139]
[1719787316332,3.0,3454.7,3453.3,0.10167139]
[1719787320464,3.0,3454.7,3453.4,4.7486047]
[1719787320771,3.0,3454.7,3453.5,0.05091993]
[1719787320966,3.0,3455.1,3453.6,0.05789578]
[1719787321192,3.70662,3455.1,3453.7,0.05080543]
[1719787321416,3.70662,3455.1,3453.8,0.05789577]
[1719787321717,3.70662,3455.1,3453.9,0.05068227]
[1719787321890,1.07583308,3455.0,3454.0,0.05789577]
[1719787322207,1.07583308,3455.0,3454.1,5.0459]
[1719787322368,1.07583308,3455.0,3454.2,0.05050251]
[1719787323878,4.5944,3455.6,3454.2,0.10839908]
[1719787324054,4.5944,3455.6,3454.3,0.05789105]
[1719787324256,1.973,3455.3,3454.1,5.0459]
[1719787324974,1.973,3454.9,3452.9,4.9755]
[1719787325205,1.973,3454.9,3453.1,4.9755]
[1719787325503,2.64438,3454.9,3453.2,0.05105949]
[1719787325701,2.64438,3454.9,3453.3,4.9755]
[1719787326014,2.64438,3454.9,3453.4,0.0509524]
[1719787326301,2.64438,3454.9,3453.5,0.05790291]
[1719787326503,2.64438,3454.9,3453.6,4.7193]
[1719787326799,4.973,3455.3,3453.7,0.05790068]
[1719787326981,0.55,3455.2,3453.7,0.10868133]
[1719787327186,0.55,3455.2,3453.8,0.05789884]
[1719787327371,0.55,3455.2,3453.9,0.05066864]
[1719787327572,1.01292,3455.1,3453.8,0.05789884]
[1719787327781,0.55,3455.0,3453.9,0.05066864]
[1719787327989,0.55,3455.0,3454.0,4.7193]
[1719787328177,3.0,3455.3,3454.1,0.10845239]
[1719787328470,4.6062,3455.8,3454.2,4.7193]
[1719787328471,3.0,3455.7,3454.2,4.7193]
[1719787328685,3.0,3455.7,3454.3,4.77718908]
[1719787328904,0.46062,3455.8,3454.3,4.82762631]
[1719787329206,4.973,3456.1,3454.3,4.82762631]
[1719787329565,4.973,3456.1,3454.4,0.05788911]
[1719787329880,4.973,3456.1,3454.5,0.05029987]
[1719787330080,0.55,3456.0,3454.5,0.05029987]
[1719787334801,0.55,3456.0,3454.6,4.6285]
[1719787335005,1.03815,3455.9,3454.7,0.05012037]
[1719787335217,0.55,3455.8,3454.7,0.05012037]
[1719787335863,5.0572,3455.6,3454.7,0.05012037]
[1719787336128,3.55,3455.5,3454.7,0.05012037]
[1719787336349,3.55,3455.5,3454.2,4.9362]
[1719787336629,1.05802,3455.4,3454.2,4.9362]
[1719787336803,0.55,3455.3,3454.3,0.04888311]
[1719787338624,3.0,3455.5,3454.4,4.9362]
[1719787338891,5.0572,3455.9,3454.5,0.10665754]
[1719787339090,3.55,3455.8,3454.5,0.10665754]
[1719787339291,0.86072,3455.7,3454.5,0.10665754]
[1719787339720,0.86072,3455.7,3454.5,0.04876867]
[1719787339919,0.55,3455.6,3454.5,0.04876867]
[1719787345835,0.86072,3455.7,3454.6,4.9362]
[1719787346045,0.86072,3455.7,3454.7,0.04865423]
[1719787346194,0.891792,3455.6,3454.7,0.04865423]
[1719787348248,3.0,3455.8,3454.8,4.8624]
[1719787348451,4.973,3456.2,3454.9,0.04713123]
[1719787348739,4.973,3456.2,3454.8,4.8624]
[1719787348740,0.55,3456.1,3454.8,4.8624]
[1719787348938,3.55,3456.1,3454.8,4.8624]
[1719787354057,3.55,3456.1,3454.9,0.04712442]
[1719787354264,1.05545,3456.0,3454.9,0.04712442]
[1719787354445,0.55,3455.9,3454.9,0.04712442]
[1719787355467,4.8785,3455.8,3454.9,0.04712442]
[1719787355767,0.55,3455.7,3454.9,0.04712442]
[1719787355919,0.55,3455.7,3454.0,4.7248]
[1719787355920,3.55,3455.7,3454.0,4.7248]
[1719787356117,1.04015,3455.6,3454.0,4.7248]
[1719787356418,0.55,3455.5,3454.1,0.04758713]
[1719787356719,4.8785,3455.3,3454.1,0.04758713]
[1719787356913,3.0,3455.2,3454.1,0.04758713]
[1719787357233,0.55,3455.1,3454.0,4.7248]
[1719787357552,1.53515,3455.1,3454.0,4.7248]
[1719787358069,3.0,3455.2,3454.2,4.78]
[1719787358356,3.0,3455.6,3454.3,0.04610075]
[1719787358562,0.55,3455.5,3454.3,0.04610075]
[1719787358724,0.55,3455.5,3454.2,4.78]
[1719787359114,0.55,3455.5,3454.3,0.04610137]
[1719787359313,0.84028,3455.4,3454.3,0.04610137]
[1719787359610,0.55,3455.3,3454.2,4.78]
[1719787359865,0.55,3455.3,3454.3,0.04610137]
[1719787360064,0.55,3455.3,3454.2,4.78]
[1719787360357,0.55,3455.3,3454.3,0.04610137]
[1719787360730,0.55,3455.3,3454.2,4.78]
[1719787360911,0.989028,3455.3,3454.2,4.78]
[1719787361117,0.989028,3455.3,3454.3,0.04608836]
[1719787361546,0.989028,3455.3,3454.2,4.78]
[1719787362063,0.989028,3455.3,3454.3,0.04608898]
[1719787362360,0.989028,3455.3,3454.2,4.78]
[1719787362530,0.1829308,3455.2,3454.2,4.78]
[1719787362734,0.1829308,3455.2,3454.3,0.04608464]
[1719787363134,0.1829308,3455.2,3454.2,4.78]
[1719787363448,0.1829308,3455.2,3454.3,0.04608464]
[1719787363668,0.1829308,3455.2,3454.2,4.78]
[1719787363837,0.20122388,3455.1,3454.3,0.04608464]
[1719787364037,0.20122388,3455.1,3454.2,4.78]
[1719787364352,0.20122388,3455.1,3454.3,0.04608464]
[1719787364750,0.20122388,3455.1,3454.2,4.78]
[1719787364967,0.989028,3455.3,3454.2,4.78]
[1719787365176,0.989028,3455.3,3454.3,0.04608526]
[1719787365600,0.989028,3455.3,3454.2,4.78]
[1719787366105,0.989028,3455.3,3454.3,0.04608526]
[1719787366483,0.439028,3455.3,3454.4,4.6183]
[1719787366644,0.439028,3455.3,3454.5,0.04597082]
[1719787367145,3.0,3455.6,3454.5,0.04597082]
[1719787367346,2.73635474,3456.8,3454.7,7.0574]
[1719787367606,4.8998,3456.5,3454.8,5.1422841]
[1719787367902,4.8998,3456.5,3454.8,5.18810124]
[1719787368393,1.973,3456.4,3454.8,5.18810124]
[1719787368600,0.68728,3456.3,3454.8,5.18810124]
[1719787369294,3.68728,3456.3,3454.8,5.18810124]
[1719787370391,0.55,3456.2,3454.8,5.18810124]
[1719787371681,0.55,3456.2,3454.8,5.13021714]
[1719787372249,1.973,3456.0,3454.8,5.13021714]
[1719787372479,0.8023,3455.9,3454.8,5.13021714]
[1719787372695,3.8023,3455.9,3454.8,5.13021714]
[1719787373191,8.798,3455.9,3454.8,5.13021714]
[1719787373554,8.798,3455.9,3454.8,5.0844]
[1719787373959,8.798,3455.9,3454.9,0.04572711]
[1719787374289,1.0771,3455.8,3454.9,0.04572711]
[1719787374493,0.55,3455.7,3454.9,0.04572711]
[1719787374790,1.0771,3455.8,3454.9,0.04572711]
[1719787375000,3.2523,3455.9,3454.9,0.04572711]
[1719787375171,0.55,3455.8,3454.9,0.04572711]
[1719787375493,3.55,3455.8,3454.9,0.04572711]
[1719787375904,0.55,3455.8,3454.9,0.04572711]
[1719787377104,0.55,3455.8,3454.8,5.0844]
[1719787377481,0.2523,3455.9,3454.9,0.04572711]
[1719787377682,0.2523,3455.9,3455.0,4.728]
[1719787377881,0.2523,3455.9,3455.1,0.0456127]
[1719787383547,4.973,3456.2,3455.1,0.0456127]
[1719787383761,0.55,3456.1,3455.1,0.0456127]
[1719787384310,5.2998,3456.1,3455.1,0.0456127]
[1719787384507,1.973,3455.8,3454.7,4.766]
[1719787384710,1.0473,3455.7,3454.8,0.04316544]
[1719787384951,4.0473,3455.7,3454.8,0.04316544]
[1719787385464,4.7498,3455.6,3454.8,0.04316544]
[1719787385623,3.55,3455.5,3454.8,0.04316544]
[1719787385947,1.17971,3455.4,3454.9,0.04312248]
[1719787386154,0.55,3455.3,3454.9,0.04312248]
[1719787386326,0.55,3455.3,3454.3,4.766]
[1719787386511,0.55,3455.3,3455.0,0.04306527]
[1719787386711,0.55,3455.3,3454.3,4.766]
[1719787386927,3.0,3455.5,3454.4,0.04340855]
[1719787387252,4.7498,3455.9,3454.4,0.04340855]
[1719787387416,3.55,3455.8,3454.4,0.04340855]
[1719787388942,3.55,3455.8,3454.4,0.18540855]
[1719787389266,1.02728,3455.7,3454.4,0.18540855]
[1719787390581,0.99928,3455.7,3454.4,0.18540855]
[1719787390884,3.55,3455.8,3454.5,4.80888739]
[1719787391038,0.55,3455.8,3454.6,0.0433133]
[1719787391237,3.0,3455.7,3454.7,4.751]
[1719787391463,0.55,3455.8,3454.8,0.04319887]
[1719787391660,0.55,3456.1,3454.8,0.04319887]
[1719787391972,1.03023,3456.0,3454.8,0.04319887]
[1719787392175,0.55,3455.9,3454.8,0.04319887]
[1719787396787,2.523,3455.9,3454.8,0.04319887]
[1719787396967,3.0,3455.8,3454.8,0.04319887]
[1719787400288,5.1582,3455.7,3454.8,0.04319887]
[1719787400588,4.01312,3455.6,3454.8,0.04319887]
[1719787400790,0.55,3455.5,3454.8,0.04319887]
[1719787401766,2.523,3455.5,3454.8,0.04319887]
[1719787401965,1.973,3455.0,3454.8,0.04319887]
[1719787402188,1.973,3455.0,3454.4,0.142]
[1719787402189,2.634,3454.9,3454.4,0.142]
[1719787402412,6.6253,3454.6,3454.4,0.142]
[1719787402690,3.902062,3454.5,3454.4,0.142]
[1719787402846,6.902062,3454.5,3454.4,0.142]
[1719787403288,6.902062,3454.5,3452.4,4.9252]
[1719787403289,0.75,3454.4,3452.4,4.9252]
[1719787403467,1.973,3453.9,3452.4,4.9252]
[1719787403668,0.7473,3453.8,3452.4,4.9252]
[1719787403988,3.7473,3453.8,3452.5,0.04451123]
[1719787404297,8.3996,3453.8,3452.4,4.9252]
[1719787405011,1.973,3453.5,3452.4,4.9252]
[1719787405306,0.55,3453.4,3452.4,4.9252]
[1719787405519,0.2523,3453.3,3452.4,4.9252]
[1719787408048,0.2523,3453.3,3452.5,0.05792662]
[1719787408249,0.1973,3453.8,3452.6,0.04445395]
[1719787408473,0.55,3453.7,3452.6,0.04445395]
[1719787408691,0.55,3453.7,3452.4,4.9252]
[1719787408852,0.55,3454.0,3452.5,0.04465499]
[1719787409576,4.7581,3453.6,3452.5,0.04465499]
[1719787409762,1.973,3453.3,3452.5,0.04465499]
[1719787409955,0.7473,3453.2,3452.5,0.04465499]
[1719787410158,0.7473,3453.2,3452.0,4.7658]
[1719787410356,3.7473,3453.2,3452.6,0.04459088]
[1719787410554,3.7473,3453.2,3452.0,4.7658]
[1719787410779,3.7473,3453.2,3452.7,0.0445336]
[1719787410978,0.57203,3453.1,3452.0,4.7658]
[1719787411353,0.57203,3453.1,3452.1,0.04487734]
[1719787411589,0.57203,3453.1,3452.1,0.10280942]
[1719787412860,3.0,3453.5,3452.1,0.10280942]
[1719787413558,3.0,3453.5,3452.2,4.6582]
[1719787413764,1.973,3454.0,3452.3,0.05791911]
[1719787413969,1.973,3454.0,3452.3,0.10282194]
[1719787414170,0.98767,3453.9,3452.3,0.04490283]
[1719787414501,3.98767,3453.9,3452.3,0.04490283]
[1719787415011,1.973,3453.6,3452.3,0.04490283]
[1719787415306,0.55,3453.5,3452.2,4.6582]
[1719787415506,0.2523,3453.4,3452.3,0.04489539]
[1719787415666,0.2523,3453.4,3452.3,0.0579251]
[1719787415865,0.2523,3453.4,3452.2,4.6582]
[1719787416083,0.2523,3453.4,3452.3,0.04489539]
[1719787416285,0.2523,3453.4,3452.2,4.6582]
[1719787416505,0.57753,3453.3,3452.3,0.04489539]
[1719787416803,0.57753,3453.3,3452.3,0.05792507]
[1719787417369,0.57753,3453.3,3452.4,0.0448381]
[1719787417568,0.2523,3453.4,3452.6,4.6944]
[1719787417774,0.2523,3453.4,3452.7,0.05791748]
[1719787418012,0.2523,3453.4,3452.7,0.10259117]
[1719787418193,3.0,3453.8,3452.7,0.10259117]
[1719787418394,3.0,3453.8,3452.7,0.04467369]
[1719787418709,3.0,3453.8,3452.6,4.6944]
[1719787419394,0.55,3453.7,3452.6,4.6944]
[1719787419991,3.0,3453.8,3452.7,0.03519277]
[1719787420179,0.596067,3453.7,3452.7,0.03519277]
[1719787420522,1.973,3453.5,3452.6,4.6944]
[1719787426620,3.0,3453.6,3452.7,0.05792269]
[1719787426811,3.4583737,3453.6,3452.7,0.05792269]
[1719787427012,3.0,3453.5,3452.7,0.05792269]
[1719787427324,0.4583737,3453.6,3452.7,0.05792269]
[1719787427523,0.98767,3453.9,3452.7,0.05792269]
[1719787428405,0.98767,3453.9,3452.6,4.6944]
[1719787429731,1.973,3453.7,3452.6,4.6944]
[1719787430533,1.973,3453.7,3452.7,0.05791867]
[1719787431547,4.923,3454.6,3452.8,4.9475]
[1719787431701,12.47,3455.6,3453.0,4.6498]
[1719787431702,1.973,3455.1,3453.0,4.6498]
[1719787431902,1.973,3456.1,3453.2,4.6498]
[1719787431903,1.973,3454.7,3453.2,4.6498]
[1719787432132,1.973,3454.7,3453.3,0.0430245]
[1719787432333,0.1973,3454.6,3453.3,0.0430245]
[1719787432748,1.973,3454.3,3453.3,0.0430245]
[1719787432955,1.973,3454.3,3453.2,4.6498]
[1719787432956,1.973,3453.9,3453.2,4.6498]
[1719787434096,1.973,3453.9,3452.0,3.0]
[1719787434097,1.973,3453.9,3452.7,4.915]
[1719787434302,1.973,3453.9,3452.8,0.04328852]
[1719787434558,0.4973,3453.8,3452.8,0.04328852]
[1719787435341,0.55,3453.7,3452.8,0.04328852]
[1719787436501,3.4973,3453.8,3452.8,0.04328852]
[1719787436717,3.0,3454.2,3452.9,4.8361]
[1719787436940,1.973,3454.0,3453.0,0.04315844]
[1719787438122,0.55,3453.9,3453.0,0.04315844]
[1719787438440,3.55,3453.9,3453.0,0.04315844]
[1719787438637,3.0,3453.9,3453.0,0.04315844]
[1719787438839,0.4973,3453.9,3453.0,0.04315844]
[1719787440931,0.55,3453.8,3453.0,0.04315844]
[1719787444429,1.973,3453.6,3453.0,0.04315844]
[1719787444632,0.55,3453.8,3453.0,0.04315844]
[1719787444633,1.973,3453.2,3453.0,0.04315844]
[1719787444946,0.1973,3453.1,3452.4,4.7442]
[1719787445143,5.3641,3453.5,3452.4,4.7442]
[1719787445144,3.0,3453.4,3452.4,4.7442]
[1719787445445,3.55,3453.5,3452.4,4.7442]
[1719787445616,3.0,3453.5,3452.4,4.7442]
[1719787446130,1.973,3453.6,3452.4,4.7442]
[1719787446441,0.67871,3453.5,3452.4,4.7442]
[1719787446956,0.55,3453.4,3452.4,4.7442]
[1719787449632,1.973,3452.8,3451.3,4.7442]
[1719787450172,1.973,3452.8,3451.5,5.0268]
[1719787450351,1.973,3452.8,3451.6,0.04401822]
[1719787450352,0.4973,3452.7,3451.6,0.04401822]
[1719787451532,0.55,3452.6,3451.6,0.04401822]
[1719787451733,0.55,3452.6,3451.6,0.04306107]
[1719787455076,3.4973,3452.7,3451.6,0.04306107]
[1719787455273,0.144,3452.6,3451.6,0.04306107]
[1719787455439,0.26143,3452.5,3451.6,0.04306107]
[1719787456049,0.26143,3452.5,3451.6,0.10100151]
[1719787456654,0.26143,3452.5,3451.6,0.04306107]
[1719787460278,0.26143,3452.5,3451.6,0.10100175]
[1719787460481,0.26143,3452.5,3451.6,0.04306107]
[1719787460839,0.144,3452.6,3451.6,0.04306107]
[1719787461267,0.144,3452.6,3451.6,0.10099699]
[1719787461452,0.144,3452.6,3451.7,4.9789]
[1719787461860,0.144,3452.6,3451.8,0.04306764]
[1719787462743,0.144,3452.6,3451.9,4.70383222]
[1719787462981,0.144,3452.6,3452.0,4.68885117]
[1719787467151,0.144,3452.6,3452.1,0.05793383]
[1719787467352,0.144,3452.6,3452.2,0.04283657]
[1719787467579,0.144,3452.6,3452.0,4.6459]
[1719787467791,0.144,3452.6,3452.1,0.04287526]
[1719787469002,0.144,3452.6,3452.1,0.10080454]
[1719787477435,0.144,3452.6,3452.5,6.8181]
[1719787477730,0.144,3452.6,3452.5,4.8451]
[1719787477903,0.144,3452.6,3452.5,4.88771633]
[1719787486638,0.144,3452.6,3452.5,0.04261633]
[1719787486833,0.144,3452.6,3452.3,4.9932]
[1719787487036,0.144,3452.6,3452.5,0.04255617]
[1719787487356,0.144,3452.6,3452.3,4.9932]
[1719787487553,0.144,3452.6,3452.5,0.04255617]
[1719787487705,0.144,3452.6,3452.4,0.04261346]
[1719787488053,0.144,3452.6,3452.5,0.04255617]
[1719787495810,0.144,3452.6,3452.5,0.86655617]
[1719787496340,0.144,3452.6,3452.5,0.04255617]
[1719787496545,0.144,3452.6,3452.5,0.86655617]
[1719787496745,0.144,3452.6,3452.5,0.824]
[1719787497042,0.144,3452.6,3452.5,0.86654437]
[1719787497618,0.144,3452.6,3452.5,0.04254437]
[1719787497841,0.144,3452.6,3452.5,0.824]
[1719787498048,0.144,3452.6,3452.5,0.86654437]
[1719787502666,0.144,3452.6,3452.5,0.04254437]
[1719787502872,0.144,3452.6,3451.9,5.980722]
[1719787502873,0.144,3452.6,3452.2,0.824]
[1719787503036,0.144,3452.6,3451.9,4.8205]
[1719787503240,0.144,3452.6,3452.3,0.04127438]
[1719787503498,0.144,3452.6,3451.6,4.8205]
[1719787503499,0.144,3452.6,3451.9,0.824]
[1719787503935,0.144,3452.6,3452.1,0.824]
[1719787504375,0.144,3452.6,3452.2,0.04013168]
[1719787505268,0.144,3452.6,3452.3,0.824]
[1719787505477,0.144,3452.6,3452.3,0.86407438]
[1719787505696,0.144,3452.6,3452.3,0.824]
[1719787506116,0.144,3452.6,3452.4,0.05792868]
[1719787506400,0.144,3452.6,3452.5,0.824]
[1719787508228,0.144,3452.6,3451.6,4.8205]
[1719787508522,4.8034,3452.5,3452.1,0.824]
[1719787508881,4.8034,3452.5,3452.2,0.04013168]
[1719787509488,4.8034,3452.5,3452.1,0.824]
[1719787509724,0.144,3452.6,3452.3,0.86407438]
[1719787509879,0.144,3452.6,3452.3,0.824]
[1719787510397,0.144,3452.6,3452.4,0.05792395]
[1719787510621,0.144,3452.6,3452.3,0.824]
[1719787511335,0.144,3452.6,3452.5,0.824]
[1719787511827,0.144,3452.6,3452.5,0.8639598]
[1719787512214,4.8034,3453.1,3452.5,0.8639598]
[1719787512417,4.8034,3453.1,3452.7,0.824]
[1719787512774,4.8034,3453.1,3452.8,0.03979966]
[1719787513008,4.8034,3453.1,3452.7,0.824]
[1719787513211,4.7754,3453.1,3452.8,0.03979966]
[1719787513409,4.7754,3453.1,3452.7,0.824]
[1719787513839,4.7754,3453.1,3452.2,4.6247]
[1719787514041,4.7754,3453.1,3452.3,0.04009779]
[1719787517334,4.7754,3453.1,3452.4,0.0579193]
[1719787517547,4.7754,3453.1,3452.4,0.0979524]
[1719787519417,4.7754,3453.1,3452.4,0.0400331]
[1719787519616,4.7754,3453.1,3452.2,4.6247]